bitfinex/quotes_ETHUSD_20241120
["timestamp","ask_amount","ask_price","bid_price","bid_amount"]
[1732095027420,3.20298,3122.1,3121.4,2.88331]
[1732095027619,3.843438,3122.2,3121.6,2.88312]
[1732095027831,3.20308,3122.0,3121.4,2.88328]
[1732095028350,0.55,3121.7,3121.2,2.88347]
[1732095028558,0.55,3121.7,3121.0,0.7667]
[1732095028761,0.55,3121.7,3120.4,2.87354999]
[1732095028762,3.20365,3121.5,3120.9,2.88371]
[1732095028906,0.55,3121.4,3120.9,2.88371]
[1732095030014,3.75349,3121.6,3121.0,2.88361]
[1732095030664,0.55,3121.6,3121.2,2.88349]
[1732095030856,0.55,3121.6,3121.0,2.88363]
[1732095031156,3.75348,3121.6,3121.0,2.88363]
[1732095031335,4.449166,3121.6,3121.0,2.88363]
[1732095031546,0.55,3121.6,3121.1,2.88358]
[1732095031712,0.55,3121.7,3121.1,2.88358]
[1732095031971,0.55,3121.7,3121.3,2.88341]
[1732095032303,3.20306,3122.1,3121.5,2.88317]
[1732095033472,0.55,3122.0,3121.5,2.88317]
[1732095033762,0.55,3122.0,3121.5,2.88313]
[1732095033962,0.55,3122.0,3121.4,2.88332]
[1732095034159,0.55,3122.0,3121.6,2.88313]
[1732095034610,0.55,3122.2,3121.7,2.88296]
[1732095034901,3.20293,3122.2,3121.6,2.88313]
[1732095035083,0.55,3122.1,3121.7,2.88303]
[1732095035491,0.55,3122.3,3121.9,2.88285]
[1732095035733,3.2026,3122.5,3121.9,2.88279]
[1732095035874,3.522711,3122.6,3122.1,2.88267]
[1732095036078,3.522711,3122.6,3121.9,2.88279]
[1732095036079,6.725261,3122.6,3121.9,2.88279]
[1732095036288,3.522711,3122.6,3121.9,2.88279]
[1732095036518,3.20229,3122.8,3121.9,2.88279]
[1732095036724,3.20229,3122.8,3122.1,2.88261]
[1732095036725,3.20236,3122.7,3122.1,2.88261]
[1732095036891,3.20229,3122.8,3122.1,2.88261]
[1732095037092,3.20242,3122.7,3122.1,2.88261]
[1732095037402,3.20253,3122.6,3121.9,2.88279]
[1732095037603,3.20259,3122.5,3122.0,2.88274]
[1732095038190,0.55,3122.6,3122.0,2.88274]
[1732095038392,3.20248,3122.6,3122.0,2.88274]
[1732095038596,0.55,3122.5,3121.9,2.88279]
[1732095038898,0.55,3122.5,3122.0,2.8827]
[1732095039297,3.2027,3122.4,3121.8,3.65667]
[1732095039605,0.55,3122.2,3121.7,2.88301]
[1732095039791,0.55,3122.2,3121.5,2.88315]
[1732095039792,0.55,3122.0,3121.5,2.88315]
[1732095039996,0.01,3122.9,3121.1,2.88357]
[1732095039997,0.55,3121.9,3121.1,2.88357]
[1732095040186,6.40695,3121.7,3121.1,2.88357]
[1732095040388,0.55,3121.6,3121.1,2.88357]
[1732095041297,0.55,3121.6,3121.1,2.88352]
[1732095041501,3.20322,3121.9,3121.2,2.88347]
[1732095041502,3.2033,3121.8,3121.2,2.88347]
[1732095041821,0.55,3121.4,3120.9,2.88376]
[1732095042424,0.55,3121.4,3121.0,2.88368]
[1732095043017,0.55,3121.6,3121.0,2.88368]
[1732095043229,3.20322,3121.9,3121.3,2.88338]
[1732095043230,0.55,3121.8,3121.3,2.88338]
[1732095043626,0.55,3121.8,3121.1,2.88357]
[1732095043627,0.55,3121.8,3121.4,2.88331]
[1732095044019,0.55,3121.8,3121.1,2.88355]
[1732095044207,3.75334,3121.8,3121.1,5.76707]
[1732095044407,3.75334,3121.8,3121.1,2.88352]
[1732095044829,1.245656,3121.8,3121.1,2.88359]
[1732095045040,0.55,3121.6,3121.1,2.88359]
[1732095045306,3.75349,3121.6,3121.1,2.88359]
[1732095045508,3.75349,3121.6,3120.9,2.88373]
[1732095045817,1.3152546,3121.6,3120.7,2.88392]
[1732095046000,3.2039,3121.2,3120.6,2.88404]
[1732095046200,3.2039,3121.2,3120.5,2.88411]
[1732095046201,3.75399,3121.1,3120.5,2.88411]
[1732095046428,0.55,3121.1,3120.5,2.88411]
[1732095047160,3.75402,3121.1,3120.6,2.88405]
[1732095047502,0.55,3121.2,3120.6,2.88405]
[1732095047705,0.55,3121.2,3120.7,2.88395]
[1732095047942,0.55,3121.4,3120.8,2.88386]
[1732095048111,3.75375,3121.4,3120.8,2.88386]
[1732095048508,0.55,3121.4,3120.8,2.8838]
[1732095048711,3.7537,3121.4,3120.8,2.8838]
[1732095049126,0.55,3121.4,3120.8,2.8838]
[1732095049327,3.75393,3121.2,3120.6,2.88403]
[1732095049748,3.75393,3121.2,3120.7,2.88393]
[1732095050743,0.55,3121.3,3120.7,2.88393]
[1732095050951,3.7538,3121.3,3120.7,2.88393]
[1732095051533,3.20397,3121.2,3120.5,2.88414]
[1732095051719,0.55,3121.1,3120.5,0.01634084]
[1732095052048,0.55,3121.1,3120.6,2.88399]
[1732095053022,3.20402,3121.1,3120.4,3.64538]
[1732095053349,0.55,3121.0,3120.6,2.88405]
[1732095053551,0.55,3121.1,3120.6,2.88405]
[1732095053713,0.55,3121.1,3120.7,2.88395]
[1732095053907,0.55,3121.4,3120.9,2.88377]
[1732095054249,0.55,3121.5,3120.9,2.88369]
[1732095054563,0.55,3121.5,3120.9,2.88372]
[1732095054722,3.75359,3121.5,3120.4,3.63474999]
[1732095055046,0.55,3121.3,3120.8,2.88381]
[1732095055251,0.55,3121.3,3120.8,5.76763]
[1732095055566,0.55,3121.6,3120.5,0.06407825]
[1732095055722,3.75356,3121.6,3121.0,2.88362]
[1732095056055,0.55,3121.4,3121.0,2.88362]
[1732095056965,0.55,3121.4,3120.8,2.88383]
[1732095057115,0.55,3121.4,3120.9,2.88375]
[1732095057608,0.55,3121.4,3120.7,2.88395]
[1732095057811,0.925367,3121.4,3120.9,2.88372]
[1732095058014,0.55,3121.7,3121.1,2.88351]
[1732095058282,0.55,3121.7,3121.2,2.88349]
[1732095058569,0.55,3121.5,3121.2,2.88349]
[1732095058729,0.55,3121.5,3121.1,2.88351]
[1732095059236,3.75348,3121.6,3121.1,2.88351]
[1732095059746,0.55,3121.8,3121.1,2.88351]
[1732095059966,4.073672,3121.8,3121.2,2.8835]
[1732095060268,4.073672,3121.8,3121.1,2.88351]
[1732095060269,0.55,3121.6,3121.1,2.88351]
[1732095060635,3.75339,3121.7,3121.1,5.76704]
[1732095060835,4.4810832,3121.7,3121.1,2.88351]
[1732095061036,3.75339,3121.7,3121.1,2.88351]
[1732095061282,3.75339,3121.7,3120.9,3.69135]
[1732095061449,0.55,3121.4,3120.9,2.88375]
[1732095061863,0.55,3121.4,3120.9,2.88372]
[1732095062173,0.55,3121.5,3121.0,2.88361]
[1732095062382,0.55,3121.5,3121.1,2.88358]
[1732095062578,0.55,3121.4,3120.7,0.7994]
[1732095062738,0.55,3121.4,3120.9,2.88371]
[1732095062928,0.55,3121.4,3121.0,2.88367]
[1732095063367,3.75354,3121.6,3121.0,2.88367]
[1732095063568,4.449241,3121.6,3121.0,2.88367]
[1732095063729,0.55,3121.4,3121.0,2.88367]
[1732095065480,0.55,3121.4,3121.0,2.88369]
[1732095065635,0.55,3121.5,3121.0,2.88369]
[1732095067176,0.55,3121.5,3121.1,2.88357]
[1732095068052,0.55,3121.5,3120.8,2.88383]
[1732095068268,0.55,3121.3,3120.8,2.8838]
[1732095068468,0.55,3121.3,3120.8,5.7676]
[1732095068664,0.55,3121.3,3120.9,2.88375]
[1732095068857,0.55,3121.5,3120.9,2.88375]
[1732095069058,3.75359,3121.5,3120.9,2.88375]
[1732095070164,0.55,3121.2,3120.7,0.7994]
[1732095070487,3.75389,3121.2,3120.6,2.88401]
[1732095070686,0.55,3121.2,3120.8,2.88386]
[1732095070856,0.55,3121.3,3120.8,2.88386]
[1732095071298,0.55,3121.3,3120.4,0.3197]
[1732095071457,3.20415,3121.0,3120.4,3.20387]
[1732095071652,0.55,3120.9,3120.4,0.3197]
[1732095071853,0.55,3121.2,3120.7,2.8839]
[1732095072279,0.55,3121.2,3120.7,5.76779]
[1732095072596,3.20359,3121.5,3120.9,2.88373]
[1732095072597,0.55,3121.5,3120.9,2.88373]
[1732095072797,3.75348,3121.6,3121.1,2.88353]
[1732095072969,0.55,3121.4,3121.0,2.88367]
[1732095073154,0.55,3121.4,3120.9,3.641]
[1732095073155,0.55,3121.4,3120.9,3.64106]
[1732095073354,0.55,3121.3,3120.7,2.88393]
[1732095073593,0.55,3121.3,3120.9,2.88374]
[1732095073801,0.55,3121.4,3120.9,2.88374]
[1732095074683,1.245733,3121.4,3120.7,2.88393]
[1732095074889,1.245733,3121.4,3120.7,2.8839]
[1732095075083,0.55,3121.2,3120.7,2.8839]
[1732095075267,0.55,3121.2,3120.6,0.8258]
[1732095075268,3.75397,3121.2,3120.6,0.8258]
[1732095075483,0.55,3120.9,3120.4,2.88418]
[1732095075779,3.20407,3121.1,3120.4,2.88418]
[1732095075780,0.55,3121.1,3120.7,2.88388]
[1732095075986,0.55,3121.3,3120.8,2.88385]
[1732095076167,3.20375,3121.4,3120.8,2.88385]
[1732095076168,0.55,3121.4,3120.8,2.88385]
[1732095076376,0.55,3121.2,3120.8,2.88385]
[1732095076585,0.55,3121.2,3120.7,2.88394]
[1732095076771,0.55,3121.2,3120.7,2.88391]
[1732095077089,3.75392,3121.2,3120.7,2.88391]
[1732095077290,0.55,3121.2,3120.7,2.88391]
[1732095078297,3.75391,3121.2,3120.7,2.88391]
[1732095078498,3.75391,3121.2,3120.6,0.7779]
[1732095078499,3.75391,3121.2,3120.6,2.88405]
[1732095078670,0.55,3121.0,3120.6,2.884]
[1732095079089,0.55,3121.2,3120.6,2.884]
[1732095079398,0.55,3121.0,3120.6,2.884]
[1732095079606,3.20379,3121.3,3120.6,2.884]
[1732095079607,0.55,3121.2,3120.6,2.884]
[1732095079764,3.7539,3121.2,3120.6,2.884]
[1732095079966,3.7539,3121.2,3120.6,2.88399]
[1732095080380,0.55,3121.3,3120.7,2.88388]
[1732095080581,0.55,3121.3,3120.8,2.88384]
[1732095080782,0.55,3121.5,3121.0,2.88367]
[1732095080983,4.128953,3121.5,3120.9,2.88377]
[1732095081197,0.55,3121.3,3120.9,2.88376]
[1732095082080,0.55,3121.4,3120.8,2.88381]
[1732095082282,4.4870313,3121.4,3120.8,2.88386]
[1732095082487,4.4870313,3121.4,3120.8,2.88382]
[1732095082872,1.2832513,3121.4,3120.9,2.88372]
[1732095083074,0.55,3121.2,3120.9,2.88372]
[1732095083612,0.55,3121.3,3120.5,2.94822736]
[1732095083810,0.55,3121.4,3120.9,2.88372]
[1732095084017,0.55,3121.5,3121.1,2.88357]
[1732095084174,0.9078843,3121.5,3121.1,2.88357]
[1732095084782,0.55,3121.7,3121.1,2.88353]
[1732095084982,3.20294,3122.2,3121.5,2.88315]
[1732095085198,3.523274,3122.1,3121.5,2.88315]
[1732095085522,0.320294,3122.1,3121.7,2.88298]
[1732095085817,0.320294,3122.1,3121.7,5.76595]
[1732095086116,3.20263,3122.5,3121.9,2.88277]
[1732095086286,3.20218,3122.9,3121.6,0.8131]
[1732095086490,3.20218,3122.9,3122.0,2.88274]
[1732095086811,3.20218,3122.9,3121.3,2.88335]
[1732095086812,3.20325,3121.9,3121.3,2.88335]
[1732095087009,0.320325,3121.8,3121.1,2.88358]
[1732095087191,3.20341,3121.7,3121.1,2.88358]
[1732095087421,3.20349,3121.6,3121.1,2.88358]
[1732095087714,0.55,3121.5,3121.0,2.88368]
[1732095088017,0.55,3121.5,3121.1,2.88359]
[1732095088216,0.55,3121.7,3121.2,2.8835]
[1732095088512,3.2035,3121.6,3120.8,2.88387]
[1732095088686,3.20375,3121.4,3120.8,2.88387]
[1732095088886,0.55,3121.3,3120.8,2.88387]
[1732095089188,0.55,3121.3,3120.8,5.76769]
[1732095089388,0.55,3121.5,3120.8,2.88382]
[1732095089586,0.870352,3121.5,3120.8,2.88382]
[1732095089901,4.073952,3121.5,3120.9,2.88378]
[1732095090078,3.7536,3121.5,3120.9,2.88378]
[1732095090403,3.7536,3121.5,3121.0,2.88368]
[1732095090599,4.449298,3121.5,3121.0,2.88368]
[1732095090918,1.245698,3121.5,3121.0,2.88368]
[1732095091513,4.449308,3121.5,3120.8,2.8838]
[1732095092218,4.449308,3121.5,3120.9,2.88375]
[1732095092385,0.55,3121.3,3120.9,2.88375]
[1732095093415,0.55,3121.3,3120.7,2.88395]
[1732095093612,3.75379,3121.3,3120.7,2.88395]
[1732095093823,0.55,3121.3,3120.7,2.88395]
[1732095094127,0.92537,3121.3,3120.7,2.88395]
[1732095094420,0.92537,3121.3,3120.6,2.884]
[1732095094629,0.55,3121.1,3120.7,2.88394]
[1732095095225,0.55,3121.2,3120.7,2.88394]
[1732095095383,1.228284,3121.2,3120.7,2.88394]
[1732095095999,1.228284,3121.2,3120.8,2.8838]
[1732095096200,0.55,3121.3,3120.7,2.88394]
[1732095096393,0.55,3121.3,3120.8,2.88387]
[1732095096595,0.92537,3121.3,3120.8,2.88387]
[1732095097533,0.92537,3121.3,3120.9,2.88377]
[1732095097732,0.92537,3121.3,3121.0,2.88365]
[1732095097936,3.75361,3121.5,3120.9,2.88377]
[1732095098240,0.55,3121.7,3120.9,2.88377]
[1732095098406,0.55,3121.5,3121.1,2.88353]
[1732095098731,0.55,3121.7,3121.1,2.88353]
[1732095098921,3.75339,3121.7,3121.1,2.88353]
[1732095099125,0.55,3121.5,3121.1,2.88353]
[1732095099491,0.55,3121.5,3120.9,2.88377]
[1732095099696,0.55,3121.5,3121.0,2.88361]
[1732095099894,0.55,3121.5,3120.9,2.88372]
[1732095100095,0.55,3121.5,3120.9,2.88375]
[1732095100398,0.55,3121.3,3120.9,2.88375]
[1732095100809,0.55,3121.3,3120.9,5.76746]
[1732095100992,0.55,3121.3,3120.9,2.88371]
[1732095101935,0.55,3121.3,3120.9,5.76742]
[1732095102138,0.55,3121.3,3120.9,2.88371]
[1732095102437,0.96665499,3121.3,3120.9,2.88371]
[1732095102598,0.55,3121.1,3120.7,2.88395]
[1732095102938,0.55,3121.1,3120.5,2.88407]
[1732095103098,1.0220565,3121.1,3120.5,5.76815]
[1732095103439,4.2260465,3121.1,3120.5,2.88407]
[1732095103636,1.0220565,3121.1,3120.5,2.88407]
[1732095103801,0.55,3120.9,3120.6,2.88404]
[1732095104623,0.55,3120.9,3120.5,2.88407]
[1732095105010,0.55,3120.9,3120.4,2.88419]
[1732095105240,0.55,3120.7,3120.2,2.88436]
[1732095105416,3.20437,3120.8,3120.2,2.88436]
[1732095105611,3.75441,3120.7,3120.2,2.88436]
[1732095106013,3.75428,3120.9,3120.2,2.88436]
[1732095106216,0.55,3120.7,3120.2,2.88436]
[1732095106426,3.20415,3121.0,3120.4,2.8842]
[1732095107105,3.20401,3121.1,3120.6,2.88401]
[1732095107302,3.20401,3121.1,3120.5,0.7635]
[1732095107303,3.20407,3121.1,3120.5,0.7635]
[1732095107525,3.844866,3121.1,3120.5,3.64765]
[1732095107740,3.844866,3121.1,3120.5,2.88415]
[1732095107942,0.3844866,3121.0,3120.5,2.88415]
[1732095108442,0.55,3120.9,3120.4,2.88417]
[1732095108742,0.55,3120.9,3120.6,2.88405]
[1732095109449,0.55,3120.9,3120.4,2.88416]
[1732095109744,3.75425,3120.9,3120.3,0.7635]
[1732095110048,3.75425,3120.9,3120.4,2.88423]
[1732095110203,1.28428066,3120.9,3120.4,2.88423]
[1732095110746,3.2043,3120.8,3120.2,5.76873]
[1732095110961,0.55,3120.7,3120.2,2.88436]
[1732095111239,3.2043,3120.8,3120.3,2.88432]
[1732095111444,0.73428066,3120.9,3120.5,2.88413]
[1732095111658,3.20413,3121.0,3120.3,2.88427]
[1732095111943,3.20413,3121.0,3120.4,2.88423]
[1732095113425,3.20394,3121.2,3120.3,2.94835847]
[1732095113426,3.20394,3121.2,3120.5,2.88412]
[1732095113630,3.20394,3121.2,3120.5,2.88415]
[1732095113631,3.524434,3121.1,3120.5,2.88415]
[1732095114361,3.524434,3121.1,3120.5,5.76823]
[1732095114507,3.524434,3121.1,3120.5,2.88408]
[1732095114709,3.524434,3121.1,3120.6,2.88403]
[1732095115545,0.32658217,3121.0,3120.6,2.88403]
[1732095115701,3.2039,3121.2,3120.6,2.88403]
[1732095116216,3.20417,3121.0,3120.4,2.88419]
[1732095116851,3.20438,3120.8,3120.2,2.88442]
[1732095117046,3.20451,3120.6,3120.0,2.88453]
[1732095118228,3.20438,3120.8,3120.0,2.88453]
[1732095118229,3.20444,3120.7,3120.1,2.88444]
[1732095118427,3.5569197,3120.7,3120.1,2.88444]
[1732095118648,0.3524797,3120.7,3120.2,2.88441]
[1732095118862,3.20438,3120.8,3120.2,2.88441]
[1732095119350,3.20415,3121.0,3120.3,3.6803]
[1732095120462,3.20374,3121.4,3120.3,0.796]
[1732095120656,3.20374,3121.4,3120.8,2.88385]
[1732095120819,0.320374,3121.3,3120.8,2.88385]
[1732095121153,3.20374,3121.4,3120.8,2.88382]
[1732095122049,3.20379,3121.3,3120.6,2.88402]
[1732095122251,6.07715999,3121.5,3120.4,2.88416]
[1732095122457,6.40815,3121.1,3120.4,2.88416]
[1732095122657,3.20407,3121.1,3120.4,2.88416]
[1732095122956,3.20407,3121.1,3120.6,2.88404]
[1732095123158,6.4077,3121.3,3120.6,2.88404]
[1732095123458,3.20367,3121.5,3120.8,2.88387]
[1732095123640,0.287355,3121.4,3120.8,2.88384]
[1732095123951,0.287355,3121.4,3120.6,2.88406]
[1732095124151,0.3491025,3121.3,3120.7,2.88389]
[1732095124359,0.3491025,3121.3,3120.9,2.88375]
[1732095124531,3.20372,3121.4,3120.9,2.88375]
[1732095124854,3.42354999,3121.8,3120.9,2.88375]
[1732095125031,3.20366,3121.5,3120.9,2.88375]
[1732095125416,3.20366,3121.5,3121.0,2.88366]
[1732095125639,3.2035,3121.6,3121.0,2.88366]
[1732095125857,3.20359,3121.5,3120.9,2.88375]
[1732095126054,3.20359,3121.5,3120.9,2.88372]
[1732095126369,3.20359,3121.5,3121.0,2.88366]
[1732095126539,3.20321,3121.9,3121.2,2.88342]
[1732095126739,3.20321,3121.9,3121.0,2.88366]
[1732095126740,3.20325,3121.9,3121.3,2.88335]
[1732095127071,3.20346,3121.7,3121.1,2.88353]
[1732095127246,3.20346,3121.7,3121.2,2.8835]
[1732095128166,6.40714,3121.6,3121.0,2.88364]
[1732095128375,3.20357,3121.6,3121.0,2.88364]
[1732095128536,3.6206065,3121.8,3121.0,2.88364]
[1732095128537,3.6206065,3121.8,3121.1,2.88353]
[1732095128734,3.6206065,3121.8,3121.0,2.88364]
[1732095128935,3.60040915,3121.7,3121.2,2.88349]
[1732095129135,3.20341,3121.7,3121.2,2.88349]
[1732095129335,3.552635,3121.9,3121.2,2.88349]
[1732095129535,3.8789155,3121.8,3121.2,2.88349]
[1732095130346,3.8789155,3121.8,3121.3,2.8834]
[1732095130672,3.8788655,3121.8,3121.3,2.8834]
[1732095130973,3.20303,3122.1,3121.5,2.88316]
[1732095131293,3.20276,3122.3,3121.7,2.88297]
[1732095131830,3.20285,3122.3,3121.7,2.88297]
[1732095132058,0.320285,3122.2,3121.7,2.88297]
[1732095132259,0.320285,3122.2,3121.3,0.824]
[1732095132468,3.20267,3122.4,3121.6,2.88308]
[1732095132675,3.20267,3122.4,3121.8,3.70814]
[1732095132975,0.640532,3122.3,3121.8,3.70814]
[1732095133179,3.20264,3122.5,3121.8,3.70814]
[1732095133394,2.87354999,3122.9,3122.2,2.88258]
[1732095133553,3.20242,3122.7,3122.0,2.8827]
[1732095133948,3.20253,3122.6,3121.9,2.88281]
[1732095134257,3.20242,3122.7,3121.8,3.70813]
[1732095134258,3.20276,3122.4,3121.8,3.70813]
[1732095136042,3.2034,3121.7,3121.4,0.805]
[1732095136293,3.20364,3121.5,3121.1,0.805]
[1732095136585,3.2038,3121.3,3120.8,0.7552]
[1732095137586,0.320364,3121.5,3121.1,2.88351]
[1732095137940,3.20349,3121.6,3121.1,2.88351]
[1732095138179,3.20349,3121.6,3120.9,2.94778633]
[1732095138875,3.2036,3121.5,3120.9,2.94778633]
[1732095139086,3.2036,3121.5,3120.9,2.88371]
[1732095139383,3.204,3121.1,3120.5,3.66581]
[1732095139564,3.204,3121.1,3120.6,2.884]
[1732095139773,3.20421,3120.9,3120.3,2.88429]
[1732095139955,3.20421,3120.9,3120.4,2.88424]
[1732095140781,3.20421,3120.9,3120.3,3.666]
[1732095141580,0.55,3121.3,3120.3,3.666]
[1732095141750,3.20423,3120.9,3120.3,3.666]
[1732095141955,3.20405,3121.1,3120.5,2.88414]
[1732095142189,3.2041,3121.0,3120.3,3.66598]
[1732095142367,3.2041,3121.0,3120.4,2.88423]
[1732095142682,3.2041,3121.0,3120.3,0.7817]
[1732095142683,3.20431,3120.8,3120.3,0.79913066]
[1732095142976,0.55,3121.3,3120.3,3.66603]
[1732095143174,3.2042,3120.9,3120.3,3.66603]
[1732095143586,3.579349,3121.2,3120.3,3.66603]
[1732095143741,3.20411,3121.0,3120.4,2.88423]
[1732095144064,3.20411,3121.0,3120.3,3.66603]
[1732095144275,3.20421,3120.9,3120.3,3.66603]
[1732095144447,3.20411,3121.0,3120.3,3.66603]
[1732095145081,3.20411,3121.0,3120.4,2.88424]
[1732095145281,3.20411,3121.0,3120.3,3.66603]
[1732095145442,3.204,3121.1,3120.5,2.88414]
[1732095145641,3.6169289,3121.1,3120.5,2.88414]
[1732095146541,3.2041,3121.0,3120.5,2.88414]
[1732095146973,3.2041,3121.0,3120.4,0.02128918]
[1732095147341,3.2041,3121.0,3120.3,6.53950999]
[1732095148395,3.6169589,3121.1,3120.4,2.88417]
[1732095148576,3.6169589,3121.1,3120.5,2.88408]
[1732095148960,3.20411,3121.0,3120.5,2.88408]
[1732095149851,0.4129289,3121.1,3120.5,2.88408]
[1732095150297,3.2041,3121.0,3120.5,2.88408]
[1732095150450,0.4129289,3121.1,3120.5,2.88408]
[1732095150950,3.6169989,3121.1,3120.5,2.88408]
[1732095151363,0.55,3121.0,3120.5,2.88408]
[1732095152112,0.55,3121.0,3120.5,5.76817]
[1732095152291,0.55,3121.0,3120.5,2.88408]
[1732095152867,0.55,3120.8,3120.3,0.7817]
[1732095153063,3.20458,3120.6,3120.3,0.7817]
[1732095153250,3.75434,3120.8,3120.3,0.7817]
[1732095153456,3.20442,3120.7,3120.3,0.7817]
[1732095153756,3.75434,3120.8,3120.3,0.7817]
[1732095155185,3.75434,3120.8,3120.3,3.66602]
[1732095155696,3.75434,3120.8,3120.3,0.7817]
[1732095156495,3.20441,3120.7,3120.3,0.7817]
[1732095156790,3.20449,3120.7,3120.3,0.7817]
[1732095156991,3.75434,3120.8,3120.0,2.88457]
[1732095156992,3.20463,3120.5,3120.0,3.70777]
[1732095157195,3.2046,3120.6,3120.0,0.8232]
[1732095157367,3.20472,3120.4,3120.0,0.8232]
[1732095157695,3.20472,3120.4,3119.8,2.88476]
[1732095159087,3.20472,3120.4,3119.8,5.76949]
[1732095159286,0.55,3120.5,3119.8,2.88473]
[1732095159766,0.55,3120.5,3119.9,2.88469]
[1732095159974,0.55,3120.5,3120.0,2.88455]
[1732095160560,0.008307,3120.8,3120.2,3.65142]
[1732095160760,3.75443,3120.7,3120.2,3.65142]
[1732095161296,4.4511397,3120.7,3120.2,0.767]
[1732095161467,3.20457,3120.6,3120.2,0.767]
[1732095161668,3.20457,3120.6,3119.8,2.88475]
[1732095161669,3.20457,3120.6,3120.1,0.767]
[1732095161877,0.44512797,3120.5,3119.9,0.767]
[1732095162077,3.20485,3120.3,3119.9,0.767]
[1732095162893,3.20474,3120.4,3119.9,0.767]
[1732095163107,3.20474,3120.4,3119.9,3.65169]
[1732095163702,3.20462,3120.5,3120.0,0.3197]
[1732095164012,3.5256857,3120.7,3120.1,2.88445]
[1732095164189,3.20443,3120.7,3120.1,2.88445]
[1732095165115,3.20451,3120.6,3120.1,2.88445]
[1732095165315,3.8462267,3120.6,3119.9,3.65163]
[1732095165608,3.20463,3120.5,3119.9,3.65163]
[1732095166309,0.6417167,3120.6,3120.1,2.8845]
[1732095166614,0.6417167,3120.6,3119.9,3.65163]
[1732095166615,0.6417167,3120.6,3119.9,6.53626]
[1732095166787,3.8462867,3120.6,3120.0,2.88454]
[1732095167403,3.8462367,3120.6,3119.9,3.65163]
[1732095167571,3.20463,3120.5,3119.9,0.767]
[1732095167774,3.55731157,3120.5,3120.0,2.88459]
[1732095167972,3.55731157,3120.5,3119.9,3.65165]
[1732095168210,0.35268157,3120.5,3120.0,2.88454]
[1732095168378,0.6417167,3120.6,3120.0,5.76909]
[1732095168580,3.20467,3120.5,3119.9,0.767]
[1732095168912,0.6417167,3120.6,3120.0,0.8124]
[1732095169210,3.20441,3120.7,3120.2,2.88437]
[1732095169872,3.20441,3120.7,3120.0,6.58153]
[1732095170081,3.212697,3120.8,3120.1,2.88451]
[1732095170082,6.417097,3120.8,3120.1,2.88451]
[1732095170313,3.5339667,3120.8,3120.2,2.88442]
[1732095170617,3.20441,3120.7,3120.2,2.88442]
[1732095171580,0.3295767,3120.8,3120.3,2.8843]
[1732095171779,3.5338867,3120.8,3120.1,2.88445]
[1732095172112,0.67380867,3120.7,3120.0,0.8124]
[1732095172281,3.20477,3120.4,3119.8,3.67304]
[1732095172616,0.640939,3120.3,3119.9,2.88469]
[1732095172817,3.20477,3120.4,3119.9,2.88465]
[1732095173514,3.20477,3120.4,3119.8,3.67307]
[1732095174179,3.20477,3120.4,3119.9,2.88469]
[1732095174481,3.845702,3120.4,3119.8,0.7883]
[1732095174688,3.20496,3120.2,3119.6,2.88493]
[1732095175012,3.20527,3119.9,3119.3,2.88518]
[1732095175213,3.20522,3120.0,3119.3,2.88518]
[1732095175511,3.20501,3120.2,3119.3,2.88518]
[1732095175713,3.20515,3120.0,3119.4,2.8851]
[1732095176114,3.2053,3119.9,3119.3,2.88518]
[1732095176325,3.20533,3119.8,3119.3,2.88518]
[1732095176632,3.846378,3119.8,3119.3,2.88518]
[1732095177295,3.20549,3119.7,3118.9,0.8026]
[1732095177509,3.20549,3119.7,3119.1,2.88538]
[1732095177710,3.20549,3119.7,3118.9,3.68822]
[1732095177711,3.20554,3119.6,3118.9,3.68822]
[1732095177919,3.20544,3119.7,3119.1,2.88538]
[1732095178091,3.20565,3119.5,3118.9,3.68817]
[1732095178922,3.20586,3119.3,3118.9,0.8026]
[1732095179120,3.20563,3119.6,3118.9,3.6882]
[1732095179531,3.2057,3119.5,3118.9,3.6882]
[1732095180547,3.20555,3119.6,3118.9,6.57377]
[1732095180851,0.320555,3119.5,3119.1,2.88543]
[1732095181045,3.20555,3119.6,3119.1,2.88543]
[1732095181219,3.20554,3119.6,3119.1,2.88543]
[1732095181623,3.20549,3119.7,3119.1,2.88543]
[1732095181807,3.20555,3119.6,3118.9,6.57377]
[1732095182003,3.20555,3119.6,3118.9,3.68817]
[1732095182243,3.56116481,3119.8,3118.9,3.68817]
[1732095182549,3.20537,3119.8,3118.9,3.68817]
[1732095183208,3.20549,3119.7,3119.1,2.88543]
[1732095183708,3.20478,3120.4,3119.3,0.8251]
[1732095183905,6.40917,3120.6,3119.9,2.88464]
[1732095184111,3.20471,3120.4,3119.9,2.88464]
[1732095184348,3.2049,3120.3,3119.7,2.88487]
[1732095184721,3.20493,3120.2,3119.7,2.88487]
[1732095184921,0.320493,3120.1,3119.7,2.88487]
[1732095185123,3.20493,3120.2,3119.7,2.88487]
[1732095185322,3.87838437,3120.6,3119.3,0.758]
[1732095185527,3.20473,3120.4,3119.9,0.758]
[1732095185741,3.20473,3120.4,3119.9,2.88468]
[1732095185924,3.845654,3120.4,3119.8,5.76945]
[1732095186130,3.20454,3120.6,3119.9,2.88468]